[Event "Turkish Women-ch Arzum 2022"]
[Site "Ayvalik"]
[Date "2022.03.11"]
[Round "9.2"]
[White "Isgenderova, Hayale"]
[Black "Gokbulut, Yulia"]
[Result "0-1"]
[ECO "B40"]
[WhiteElo "2202"]
[BlackElo "1902"]
[Annotator "ChessBase"]
[PlyCount "124"]
[EventDate "2022.03.04"]
[EventType "swiss"]
[EventCountry "TUR"]
[SourceTitle "playchess.com"]
[Source "ChessBase"]
[SourceQuality "1"]
[TimeControl "5400+30"]

1. e4 {[%emt 0:02:00]} c5 {[%emt 0:01:00]} 2. Nf3 {[%emt 0:01:30]} e6 {[%emt 0:00:30]} 3. b3 {[%emt 0:00:30]} b6 {[%emt 0:00:00]} 4. Bb2 {[%emt 0:00:00]} Bb7 {[%emt 0:00:00]} 5. Qe2 {[%emt 0:00:00]} Nc6 {[%emt 0:02:30]} 6. g3 {[%emt 0:00:30]} d6 {[%emt 0:01:30]} 7. Bg2 {[%emt 0:00:30]} e5 {[%emt 0:02:30]} 8. O-O {[%emt 0:00:30]} Nf6 {[%emt 0:01:30]} 9. c3 {[%emt 0:04:30]} g6 {[%emt 0:09:30]} 10. d4 {[%emt 0:05:30]} Qe7 {[%emt 0:04:30]} 11. d5 {[%emt 0:08:30]} Nb8 {[%emt 0:01:30]} 12. a4 {[%emt 0:00:30]} Bg7 {[%emt 0:04:30]} 13. a5 {[%emt 0:05:30]} Ba6 {[%emt 0:05:30]} 14. c4 {[%emt 0:00:00]} Nbd7 {[%emt 0:01:30]} 15. Nc3 {[%emt 0:02:00]} O-O {[%emt 0:00:30]} 16. Ra2 {[%emt 0:04:30]} Ne8 {[%emt 0:08:30]} 17. axb6 {[%emt 0:04:30]} axb6 {[%emt 0:00:30]} 18. Rfa1 {[%emt 0:00:30]} Nc7 {[%emt 0:00:30]} 19. Bh3 {[%emt 0:00:30]} Bb7 {[%emt 0:10:30]} 20. Ra7 {[%emt 0:04:30]} Rxa7 {[%emt 0:05:30]} 21. Rxa7 {[%emt 0:00:30]} Rb8 {[%emt 0:00:00]} 22. Nd2 {[%emt 0:03:30]} Bh6 {[%emt 0:01:00]} 23. Ndb1 {[%emt 0:02:30]} Nf8 {[%emt 0:02:30]} 24. Na3 {[%emt 0:03:30]} Qd8 {[%emt 0:01:30]} 25. Ncb5 {[%emt 0:04:30]} Ne8 {[%emt 0:01:30]} 26. Nc2 {[%emt 0:11:30]} Bg5 {[%emt 0:04:30]} 27. Ne1 {[%emt 0:03:30]} h5 {[%emt 0:06:30]} 28. Nd3 {[%emt 0:01:30]} f6 {[%emt 0:11:59]} 29. f4 {[%emt 0:00:30]} Bh6 {[%emt 0:01:48]} 30. fxe5 {[%emt 0:00:30]} fxe5 {[%emt 0:00:00]} 31. Nxe5 {[%emt 0:00:30]} dxe5 {[%emt 0:00:24]} 32. Bxe5 {[%emt 0:00:00]} Bg7 {[%emt 0:03:12]} 33. Bxb8 {[%emt 0:05:00]} Qxb8 {[%emt 0:00:02]} 34. e5 {[%emt 0:00:30]} Nc7 {[%emt 0:01:47]} 35. Rxb7 {[%emt 0:05:41]} Qxb7 {[%emt 0:00:30]} 36. e6 {[%emt 0:00:00]} Nxb5 {[%emt 0:00:53]} 37. e7 {[%emt 0:02:48]} Nd6 {[%emt 0:00:32]} 38. e8=Q {[%emt 0:01:13]} Nxe8 {[%emt 0:00:30]} 39. Qxe8 {[%emt 0:00:00]} Bd4+ {[%emt 0:01:06]} 40. Kg2 {[%emt 0:00:25]} Kg7 {[%emt 0:00:39]} 41. Kf3 {[%emt 0:07:42]} Qf7+ {[%emt 0:00:44]} 42. Qxf7+ {[%emt 0:00:30]} Kxf7 {[%emt 0:00:00]} 43. g4 {[%emt 0:03:10]} h4 {[%emt 0:02:16]} 44. g5 {[%emt 0:00:17]} Ke7 {[%emt 0:00:32]} 45. Bf1 {[%emt 0:00:42]} Kd6 {[%emt 0:00:42]} 46. Kg4 {[%emt 0:00:45]} Bf2 {[%emt 0:00:20]} 47. Bd3 {[%emt 0:00:23]} Ke5 {[%emt 0:00:23]} 48. Bb1 {[%emt 0:00:07]} Bg1 {[%emt 0:01:24]} 49. Kxh4 {[%emt 0:02:50]} Kf4 {[%emt 0:00:58]} 50. Bxg6 {[%emt 0:02:27]} Nxg6+ {[%emt 0:00:30]} 51. Kh5 {[%emt 0:00:00]} Kf5 {[%emt 0:00:27]} 52. h4 {[%emt 0:01:23]} Bh2 {[%emt 0:00:40]} 53. Kh6 {[%emt 0:00:30]} Nxh4 {[%emt 0:00:30]} 54. Kg7 {[%emt 0:00:00]} Kxg5 {[%emt 0:00:04]} 55. Kf7 {[%emt 0:00:00]} Kf5 {[%emt 0:00:34]} 56. Ke7 {[%emt 0:00:02]} Ng6+ {[%emt 0:00:30]} 57. Kd7 {[%emt 0:00:33]} Ne5+ {[%emt 0:01:10]} 58. Ke7 {[%emt 0:02:01]} Ke4 {[%emt 0:00:28]} 59. Kd8 {[%emt 0:01:45]} Kd4 {[%emt 0:00:16]} 60. d6 {[%emt 0:00:00]} Nf7+ {[%emt 0:00:30]} 61. Kc7 {[%emt 0:00:08]} Nxd6 {[%emt 0:00:02]} 62. Kxb6 {[%emt 0:00:32]} Nxc4+ {[%emt 0:00:22]} 0-1

[Event "Turkish Women-ch Arzum 2022"]
[Site "Ayvalik"]
[Date "2022.03.11"]
[Round "9.3"]
[White "Aydin, Gulenay"]
[Black "Akat, Elifnaz"]
[Result "1/2-1/2"]
[ECO "E01"]
[WhiteElo "2069"]
[BlackElo "1673"]
[Annotator "ChessBase"]
[PlyCount "70"]
[EventDate "2022.03.04"]
[EventType "swiss"]
[EventCountry "TUR"]
[SourceTitle "playchess.com"]
[Source "ChessBase"]
[SourceQuality "1"]
[TimeControl "5400+30"]

1. Nf3 {[%emt 0:04:00]} Nf6 {[%emt 0:01:00]} 2. g3 {[%emt 0:00:30]} d5 {[%emt 0:00:30]} 3. Bg2 {[%emt 0:01:30]} c6 {[%emt 0:00:30]} 4. O-O {[%emt 0:00:30]} e6 {[%emt 0:00:30]} 5. d4 {[%emt 0:00:30]} Bd6 {[%emt 0:00:30]} 6. c4 {[%emt 0:03:30]} dxc4 {[%emt 0:00:30]} 7. a4 {[%emt 0:04:30]} O-O {[%emt 0:03:30]} 8. Qc2 {[%emt 0:01:30]} a6 {[%emt 0:02:30]} 9. Qxc4 {[%emt 0:02:30]} b5 {[%emt 0:04:30]} 10. Qc2 {[%emt 0:01:30]} Bb7 {[%emt 0:00:30]} 11. e4 {[%emt 0:04:30]} Be7 {[%emt 0:03:30]} 12. Be3 {[%emt 0:26:30]} Nbd7 {[%emt 0:03:30]} 13. Nc3 {[%emt 0:00:30]} Rc8 {[%emt 0:03:30]} 14. e5 {[%emt 0:03:30]} Nd5 {[%emt 0:02:30]} 15. Nxd5 {[%emt 0:00:30]} cxd5 {[%emt 0:01:30]} 16. Qd3 {[%emt 0:06:30]} Bc6 {[%emt 0:02:30]} 17. a5 {[%emt 0:06:30]} Nb8 {[%emt 0:02:30]} 18. Rfc1 {[%emt 0:05:30]} b4 {[%emt 0:02:30]} 19. Qb3 {[%emt 0:04:30]} Bb5 {[%emt 0:01:30]} 20. Rxc8 {[%emt 0:00:30]} Qxc8 {[%emt 0:00:30]} 21. Bf1 {[%emt 0:00:30]} Bxf1 {[%emt 0:14:30]} 22. Kxf1 {[%emt 0:00:00]} Nc6 {[%emt 0:04:30]} 23. Qa4 {[%emt 0:03:47]} Qd7 {[%emt 0:03:30]} 24. Rc1 {[%emt 0:03:50]} Rc8 {[%emt 0:03:30]} 25. Ne1 {[%emt 0:00:31]} Qb7 {[%emt 0:06:30]} 26. Nd3 {[%emt 0:01:03]} Na7 {[%emt 0:00:00]} 27. Rxc8+ {[%emt 0:09:14]} Qxc8 {[%emt 0:02:00]} 28. Kg2 {[%emt 0:00:08]} Nc6 {[%emt 0:00:30]} 29. h4 {[%emt 0:00:25]} h6 {[%emt 0:01:30]} 30. h5 {[%emt 0:01:45]} Qc7 {[%emt 0:02:30]} 31. Bd2 {[%emt 0:00:41]} Qb7 {[%emt 0:01:30]} 32. Be1 {[%emt 0:03:21]} Kh7 {[%emt 0:03:30]} 33. Bd2 {[%emt 0:00:33]} Kg8 {[%emt 0:04:30]} 34. Be1 {[%emt 0:00:06]} Kh7 {[%emt 0:00:30]} 35. Bd2 {[%emt 0:00:13]} Kg8 {[%emt 0:00:33]} 1/2-1/2

[Event "Turkish Women-ch Arzum 2022"]
[Site "Ayvalik"]
[Date "2022.03.11"]
[Round "9.4"]
[White "Ince, Safiye Oyku"]
[Black "Caglar, Sila"]
[Result "1/2-1/2"]
[ECO "B47"]
[WhiteElo "1893"]
[BlackElo "2200"]
[Annotator "ChessBase"]
[PlyCount "123"]
[EventDate "2022.03.04"]
[EventType "swiss"]
[EventCountry "TUR"]
[SourceTitle "playchess.com"]
[Source "ChessBase"]
[SourceQuality "1"]
[TimeControl "5400+30"]

1. e4 c5 2. Nf3 Nc6 3. d4 cxd4 {[%emt 0:01:00]} 4. Nxd4 {[%emt 0:01:30]} e6 {[%emt 0:00:30]} 5. Nc3 {[%emt 0:00:30]} Qc7 {[%emt 0:00:30]} 6. Be3 {[%emt 0:00:00]} Nf6 {[%emt 0:00:30]} 7. Ndb5 {[%emt 0:06:00]} Qb8 {[%emt 0:02:30]} 8. g4 {[%emt 0:03:30]} h5 {[%emt 0:09:30]} 9. g5 {[%emt 0:08:30]} Ng4 {[%emt 0:00:00]} 10. Be2 {[%emt 0:04:30]} Nxe3 {[%emt 0:01:00]} 11. fxe3 {[%emt 0:00:00]} a6 {[%emt 0:01:30]} 12. Nd4 {[%emt 0:00:00]} Be7 {[%emt 0:07:30]} 13. Nf3 {[%emt 0:11:30]} Qa7 {[%emt 0:10:30]} 14. Qd3 {[%emt 0:00:30]} Bc5 {[%emt 0:08:30]} 15. O-O-O {[%emt 0:05:30]} Nb4 {[%emt 0:05:30]} 16. Qc4 {[%emt 0:00:30]} b5 {[%emt 0:00:30]} 17. Qb3 {[%emt 0:00:30]} Nc6 {[%emt 0:00:30]} 18. a3 {[%emt 0:03:30]} Na5 {[%emt 0:01:30]} 19. Qa2 {[%emt 0:00:30]} Bxe3+ {[%emt 0:00:30]} 20. Kb1 {[%emt 0:00:00]} Qc7 {[%emt 0:04:30]} 21. Rhe1 {[%emt 0:05:00]} Bf4 {[%emt 0:08:30]} 22. h4 {[%emt 0:02:30]} Bb7 {[%emt 0:02:30]} 23. Bd3 {[%emt 0:04:30]} O-O-O {[%emt 0:05:30]} 24. Ne2 {[%emt 0:02:30]} Bd6 {[%emt 0:01:30]} 25. b4 {[%emt 0:05:30]} Nc6 {[%emt 0:01:30]} 26. c4 {[%emt 0:00:30]} bxc4 {[%emt 0:01:30]} 27. Qxc4 {[%emt 0:00:00]} Ne5 {[%emt 0:03:30]} 28. Nxe5 {[%emt 0:03:00]} Bxe5 {[%emt 0:00:30]} 29. Qb3 {[%emt 0:00:00]} Kb8 {[%emt 0:00:00]} 30. Rc1 {[%emt 0:06:00]} Qb6 {[%emt 0:01:00]} 31. Nc3 {[%emt 0:08:30]} Rc8 {[%emt 0:01:30]} 32. Na4 {[%emt 0:00:30]} Qd4 {[%emt 0:01:30]} 33. Nc5 {[%emt 0:00:30]} d6 {[%emt 0:06:19]} 34. Nd7+ {[%emt 0:00:30]} Ka7 {[%emt 0:00:00]} 35. Nxe5 {[%emt 0:00:00]} Qxe5 {[%emt 0:00:00]} 36. Qb2 {[%emt 0:04:51]} Qxb2+ {[%emt 0:04:40]} 37. Kxb2 {[%emt 0:00:02]} g6 {[%emt 0:00:32]} 38. Rf1 {[%emt 0:01:38]} Rxc1 {[%emt 0:00:30]} 39. Kxc1 {[%emt 0:00:00]} Rc8+ {[%emt 0:00:19]} 40. Kd2 {[%emt 0:00:26]} Rc7 {[%emt 0:00:00]} 41. a4 {[%emt 0:01:48]} Kb6 {[%emt 0:04:49]} 42. a5+ {[%emt 0:04:44]} Ka7 {[%emt 0:00:11]} 43. Rc1 {[%emt 0:01:52]} Rd7 {[%emt 0:03:20]} 44. Ke3 {[%emt 0:03:59]} d5 {[%emt 0:01:30]} 45. exd5 {[%emt 0:02:38]} Bxd5 {[%emt 0:00:15]} 46. Rc8 {[%emt 0:03:21]} Kb7 {[%emt 0:01:24]} 47. Re8 {[%emt 0:00:06]} Bc6 {[%emt 0:00:09]} 48. Rf8 {[%emt 0:01:15]} Re7 {[%emt 0:00:09]} 49. Be4 {[%emt 0:00:26]} e5 {[%emt 0:00:56]} 50. Bxc6+ {[%emt 0:00:41]} Kxc6 {[%emt 0:00:01]} 51. Rb8 {[%emt 0:00:20]} Kd5 {[%emt 0:00:47]} 52. Rb6 {[%emt 0:00:58]} Rc7 {[%emt 0:04:34]} 53. Rxa6 {[%emt 0:00:30]} Rc3+ {[%emt 0:00:39]} 54. Kd2 {[%emt 0:00:00]} Rh3 {[%emt 0:00:26]} 55. b5 {[%emt 0:00:23]} Rxh4 {[%emt 0:00:30]} 56. b6 {[%emt 0:00:00]} Kc6 {[%emt 0:00:36]} 57. Ra7 {[%emt 0:00:03]} Rd4+ {[%emt 0:00:35]} 58. Ke3 {[%emt 0:00:10]} Rb4 {[%emt 0:00:16]} 59. Rxf7 {[%emt 0:01:03]} h4 {[%emt 0:00:21]} 60. Rf6+ {[%emt 0:00:18]} Kb5 {[%emt 0:00:22]} 61. Rxg6 {[%emt 0:01:12]} Kxa5 {[%emt 0:00:03]} 62. Re6 {[%emt 0:00:42]} 1/2-1/2

[Event "Turkish Women-ch Arzum 2022"]
[Site "Ayvalik"]
[Date "2022.03.11"]
[Round "9.6"]
[White "Acarbay, Algi"]
[Black "Acar, Ilayda"]
[Result "1/2-1/2"]
[ECO "D02"]
[WhiteElo "1992"]
[BlackElo "1460"]
[Annotator "ChessBase"]
[PlyCount "62"]
[EventDate "2022.03.04"]
[EventType "swiss"]
[EventCountry "TUR"]
[SourceTitle "playchess.com"]
[Source "ChessBase"]
[SourceQuality "1"]
[TimeControl "5400+30"]

1. d4 {[%emt 0:06:00]} Nf6 {[%emt 0:01:00]} 2. Bf4 {[%emt 0:01:30]} e6 {[%emt 0:00:30]} 3. e3 {[%emt 0:00:30]} d5 {[%emt 0:00:30]} 4. Nf3 {[%emt 0:00:30]} c5 {[%emt 0:01:30]} 5. c3 {[%emt 0:00:30]} Nc6 {[%emt 0:02:30]} 6. Nbd2 {[%emt 0:00:30]} Bd6 {[%emt 0:00:30]} 7. Bg3 {[%emt 0:01:30]} Ne4 {[%emt 0:02:30]} 8. Nxe4 {[%emt 0:05:30]} dxe4 {[%emt 0:00:30]} 9. Nd2 {[%emt 0:04:30]} f5 {[%emt 0:04:30]} 10. Nc4 {[%emt 0:10:30]} Bxg3 {[%emt 0:08:30]} 11. hxg3 {[%emt 0:00:30]} cxd4 {[%emt 0:07:30]} 12. cxd4 {[%emt 0:01:30]} Qe7 {[%emt 0:01:30]} 13. Qb3 {[%emt 0:14:30]} Qb4+ {[%emt 0:04:30]} 14. Qxb4 {[%emt 0:00:30]} Nxb4 {[%emt 0:00:30]} 15. Kd2 {[%emt 0:01:30]} O-O {[%emt 0:02:30]} 16. Ne5 {[%emt 0:04:30]} a6 {[%emt 0:04:30]} 17. a3 {[%emt 0:03:30]} Nd5 {[%emt 0:00:30]} 18. Bc4 {[%emt 0:00:30]} Nf6 {[%emt 0:05:30]} 19. Rac1 {[%emt 0:03:30]} Re8 {[%emt 0:04:30]} 20. Bb3 {[%emt 0:01:30]} b5 {[%emt 0:01:30]} 21. Rc7 {[%emt 0:00:30]} Nd5 {[%emt 0:05:30]} 22. Bxd5 {[%emt 0:01:30]} exd5 {[%emt 0:00:00]} 23. Rhc1 {[%emt 0:00:00]} Be6 {[%emt 0:04:00]} 24. R1c6 {[%emt 0:02:00]} b4 {[%emt 0:07:30]} 25. axb4 {[%emt 0:04:30]} Rab8 {[%emt 0:01:30]} 26. Rxa6 {[%emt 0:01:30]} Rxb4 {[%emt 0:00:30]} 27. Raa7 {[%emt 0:00:30]} Rxb2+ {[%emt 0:00:30]} 28. Kc3 {[%emt 0:00:30]} Reb8 {[%emt 0:00:30]} 29. Ra8 {[%emt 0:05:30]} R2b3+ {[%emt 0:00:30]} 30. Kc2 {[%emt 0:00:00]} Rb2+ {[%emt 0:00:30]} 31. Kc1 {[%emt 0:00:00]} Rb1+ {[%emt 0:00:00]} 1/2-1/2

[Event "Turkish Women-ch Arzum 2022"]
[Site "Ayvalik"]
[Date "2022.03.11"]
[Round "9.7"]
[White "Kayis, Gulcan Sena"]
[Black "Hereklioglu, Sude"]
[Result "0-1"]
[ECO "B06"]
[WhiteElo "1597"]
[BlackElo "1924"]
[Annotator "ChessBase"]
[PlyCount "128"]
[EventDate "2022.03.04"]
[EventType "swiss"]
[EventCountry "TUR"]
[SourceTitle "playchess.com"]
[Source "ChessBase"]
[SourceQuality "1"]
[TimeControl "5400+30"]

1. e4 {[%emt 0:02:00]} g6 {[%emt 0:01:00]} 2. d4 {[%emt 0:00:30]} Bg7 {[%emt 0:00:30]} 3. Nf3 {[%emt 0:01:30]} d6 {[%emt 0:03:30]} 4. h3 {[%emt 0:01:30]} c6 {[%emt 0:01:30]} 5. Bd3 {[%emt 0:01:30]} Nd7 {[%emt 0:01:30]} 6. O-O {[%emt 0:03:30]} e5 {[%emt 0:04:30]} 7. dxe5 {[%emt 0:02:30]} dxe5 {[%emt 0:00:00]} 8. Qe2 {[%emt 0:02:30]} Ngf6 {[%emt 0:01:00]} 9. a4 {[%emt 0:02:30]} a5 {[%emt 0:01:30]} 10. b3 {[%emt 0:02:30]} O-O {[%emt 0:04:30]} 11. Rd1 {[%emt 0:05:30]} Nh5 {[%emt 0:23:30]} 12. g3 {[%emt 0:06:30]} Qb6 {[%emt 0:08:30]} 13. Kh2 {[%emt 0:05:30]} h6 {[%emt 0:11:30]} 14. Nbd2 {[%emt 0:10:30]} Rd8 {[%emt 0:02:30]} 15. Nc4 {[%emt 0:04:30]} Qc7 {[%emt 0:00:30]} 16. Ba3 {[%emt 0:01:30]} Bf8 {[%emt 0:07:30]} 17. Bxf8 {[%emt 0:01:30]} Kxf8 {[%emt 0:02:30]} 18. Qd2 {[%emt 0:00:30]} Kg7 {[%emt 0:00:00]} 19. Be2 {[%emt 0:02:30]} Re8 {[%emt 0:03:00]} 20. Nd6 {[%emt 0:08:30]} Re7 {[%emt 0:02:03]} 21. Nh4 {[%emt 0:00:30]} Ndf6 {[%emt 0:01:55]} 22. Nf3 {[%emt 0:13:46]} Ne8 {[%emt 0:05:24]} 23. Nc4 {[%emt 0:06:27]} Nhf6 {[%emt 0:01:47]} 24. Qe3 {[%emt 0:01:06]} Nd7 {[%emt 0:03:29]} 25. Ne1 {[%emt 0:04:00]} b6 {[%emt 0:02:37]} 26. Bg4 {[%emt 0:02:15]} Nef6 {[%emt 0:00:10]} 27. Bxd7 {[%emt 0:00:49]} Nxd7 {[%emt 0:00:04]} 28. Rd2 {[%emt 0:01:14]} b5 {[%emt 0:02:15]} 29. Nd6 {[%emt 0:01:25]} Ba6 {[%emt 0:00:47]} 30. Qc3 {[%emt 0:01:38]} b4 {[%emt 0:01:22]} 31. Qe3 {[%emt 0:00:22]} Qb6 {[%emt 0:00:47]} 32. Ng2 {[%emt 0:01:17]} Qxe3 {[%emt 0:01:45]} 33. Nxe3 {[%emt 0:00:05]} Nb6 {[%emt 0:00:39]} 34. Rad1 {[%emt 0:00:37]} Rc7 {[%emt 0:01:06]} 35. h4 {[%emt 0:01:42]} c5 {[%emt 0:01:00]} 36. Nd5 {[%emt 0:00:35]} Nxd5 {[%emt 0:00:45]} 37. Rxd5 {[%emt 0:00:10]} f6 {[%emt 0:00:33]} 38. R1d2 {[%emt 0:01:24]} Kf8 {[%emt 0:00:49]} 39. h5 {[%emt 0:01:30]} gxh5 {[%emt 0:00:31]} 40. f3 {[%emt 0:00:11]} Bc8 {[%emt 0:00:25]} 41. Nb5 {[%emt 0:00:54]} Rc6 {[%emt 0:00:08]} 42. Rd8+ {[%emt 0:00:09]} Kg7 {[%emt 0:00:50]} 43. R2d7+ {[%emt 0:01:23]} Bxd7 {[%emt 0:00:30]} 44. Rxa8 {[%emt 0:00:00]} Be6 {[%emt 0:00:16]} 45. Ra7+ {[%emt 0:01:12]} Kg6 {[%emt 0:00:14]} 46. Rc7 {[%emt 0:00:23]} Rxc7 {[%emt 0:00:53]} 47. Nxc7 {[%emt 0:00:01]} Bf7 {[%emt 0:00:32]} 48. Na6 {[%emt 0:01:27]} c4 {[%emt 0:00:30]} 49. Nc5 {[%emt 0:00:00]} c3 {[%emt 0:00:03]} 50. Kg2 {[%emt 0:00:10]} Kg5 {[%emt 0:01:18]} 51. Nd3 {[%emt 0:00:59]} h4 {[%emt 0:00:31]} 52. gxh4+ {[%emt 0:00:56]} Kxh4 {[%emt 0:00:05]} 53. Kf2 {[%emt 0:00:26]} h5 {[%emt 0:00:14]} 54. Ne1 {[%emt 0:00:21]} Kg5 {[%emt 0:00:55]} 55. Kg3 {[%emt 0:00:30]} h4+ {[%emt 0:00:00]} 56. Kf2 {[%emt 0:00:00]} f5 {[%emt 0:01:00]} 57. exf5 {[%emt 0:00:28]} Kxf5 {[%emt 0:00:30]} 58. Ng2 {[%emt 0:00:00]} Kg5 {[%emt 0:00:13]} 59. Ne3 {[%emt 0:00:01]} Be6 {[%emt 0:00:40]} 60. Ke2 {[%emt 0:00:45]} h3 {[%emt 0:00:50]} 61. Nf1 {[%emt 0:00:11]} Kf4 {[%emt 0:00:00]} 62. Nh2 {[%emt 0:01:14]} Kg3 {[%emt 0:00:35]} 63. Nf1+ {[%emt 0:00:30]} Kg2 {[%emt 0:00:30]} 64. Ne3+ {[%emt 0:00:00]} Kg1 {[%emt 0:00:00]} 0-1

[Event "Turkish Women-ch Arzum 2022"]
[Site "Ayvalik"]
[Date "2022.03.11"]
[Round "9.8"]
[White "Karatiken, Beray"]
[Black "Can, Isil"]
[Result "0-1"]
[ECO "C54"]
[WhiteElo "1380"]
[BlackElo "1875"]
[Annotator "NA"]
[PlyCount "121"]
[EventDate "2022.03.04"]
[EventType "swiss"]
[EventCountry "TUR"]
[SourceTitle "playchess.com"]
[Source "ChessBase"]
[SourceQuality "1"]
[TimeControl "5400+30"]

1. e4 e5 2. Nf3 Nc6 3. Bc4 Bc5 4. c3 Nf6 5. d3 {[%emt 0:01:00]} d6 {[%emt 0:02:00]} 6. h3 {[%emt 0:00:30]} h6 {[%emt 0:00:30]} 7. Nbd2 {[%emt 0:00:30]} Bb6 {[%emt 0:00:30]} 8. Bb3 {[%emt 0:00:30]} Ne7 {[%emt 0:00:00]} 9. O-O {[%emt 0:01:30]} O-O {[%emt 0:01:00]} 10. d4 {[%emt 0:00:30]} Ng6 {[%emt 0:00:00]} 11. Bc2 {[%emt 0:02:30]} Be6 {[%emt 0:03:00]} 12. Re1 {[%emt 0:05:30]} c5 {[%emt 0:12:30]} 13. d5 {[%emt 0:04:30]} Bd7 {[%emt 0:00:30]} 14. Nc4 {[%emt 0:02:30]} Bc7 {[%emt 0:00:30]} 15. b4 {[%emt 0:03:30]} (15. a4 $14) 15... b5 {[%emt 0:06:30]} 16. Ne3 {[%emt 0:01:30]} c4 {[%emt 0:07:30]} ({Black should try} 16... cxb4 $15 17. cxb4 Bb6) 17. g4 {[%emt 0:06:30]} (17. Bd2 $11 {keeps the balance.}) 17... Nf4 {[%emt 0:03:30]} 18. Kh2 {[%emt 0:01:30]} g5 {[%emt 0:01:30]} ({Black should try} 18... Bb6 $17 19. a4 a5) 19. Nf5 {[%emt 0:00:30]} (19. a4 $11) 19... Bxf5 {[%emt 0:01:30]} 20. gxf5 {[%emt 0:00:30]} N6h5 {[%emt 0:04:30]} ({Black should play} 20... a5 $15 21. Bxf4 gxf4) 21. Rg1 {[%emt 0:03:30]} Kh7 {[%emt 0:00:30]} (21... a5 $15 {might be stronger.}) 22. Ne1 {[%emt 0:00:30]} (22. a4 $1 $11) 22... Rg8 {[%emt 0:02:30]} 23. Ng2 {[%emt 0:01:30]} Bb6 {[%emt 0:06:30]} 24. Be3 {[%emt 0:03:30]} (24. Nxf4 $15 Nxf4 25. Qf3) 24... g4 {[%emt 0:10:30]} 25. hxg4 $2 {[%emt 0:02:30]} (25. Nxf4 $17 {was the only chance.} exf4 26. Bxb6 (26. Rxg4 $2 fxe3 27. Rxg8 Qxg8 $19) 26... Qxb6 27. Qd2) 25... Nxg2 {[%emt 0:02:30]} ({Inferior is} 25... Bxe3 26. fxe3 Nxg2 27. Kxg2 $17) 26. Rxg2 $2 {[%emt 0:00:30]} (26. Kxg2 Qh4 27. Kf3) 26... Qh4+ {[%emt 0:00:30]} 27. Kg1 {[%emt 0:01:30]} Bxe3 {[%emt 0:00:30]} (27... Nf6 $142 28. Rh2 (28. Bxb6 $2 Rxg4 29. Bxa7 Qh3 $19) 28... Qxg4+ 29. Qxg4 Nxg4 30. Bxb6 Nxh2+ 31. Kxh2 axb6) 28. fxe3 {[%emt 0:02:30]} Nf6 {[%emt 0:00:30]} (28... a5 $17) 29. Qe1 {[%emt 0:03:30]} Qxe1+ {[%emt 0:00:30]} ({Not} 29... Rxg4 30. Qxh4 Rxh4 31. a4 $11) 30. Rxe1 {[%emt 0:00:30]} Rxg4 {[%emt 0:00:30]} 31. Rxg4 {[%emt 0:00:00]} Nxg4 {[%emt 0:00:00]} 32. Kg2 $2 {[%emt 0:00:00]} (32. a4 $17 {keeps fighting.}) 32... a5 {[%emt 0:03:00]} 33. Kf3 {[%emt 0:01:30]} Nf6 {[%emt 0:03:30]} 34. Bb1 {[%emt 0:15:30]} axb4 {[%emt 0:03:30]} 35. cxb4 {[%emt 0:00:30]} Ra4 {[%emt 0:00:30]} 36. Ke2 {[%emt 0:03:30]} Rxb4 {[%emt 0:00:00]} 37. Kd2 {[%emt 0:00:30]} Ra4 {[%emt 0:02:00]} 38. Rc1 {[%emt 0:02:30]} Nd7 {[%emt 0:02:30]} 39. Rc2 $19 {[%emt 0:00:30]} Nc5 {[%emt 0:02:30]} 40. Rc1 {[%emt 0:02:30]} Kg7 {[%emt 0:03:45]} 41. Rg1+ {[%emt 0:00:30]} Kf6 {[%emt 0:00:02]} 42. Rh1 {[%emt 0:00:30]} Kg7 {[%emt 0:00:30]} 43. Rg1+ {[%emt 0:00:00]} Kh7 {[%emt 0:00:00]} 44. f6 {[%emt 0:00:00]} h5 {[%emt 0:03:48]} 45. Rg7+ {[%emt 0:00:30]} Kh6 {[%emt 0:00:00]} 46. Rxf7 {[%emt 0:00:00]} Kg6 {[%emt 0:00:25]} 47. Rf8 {[%emt 0:00:00]} b4 {[%emt 0:00:00]} 48. Rd8 {[%emt 0:01:30]} Ra6 {[%emt 0:04:04]} 49. Rb8 {[%emt 0:02:30]} b3 {[%emt 0:01:09]} 50. axb3 {[%emt 0:00:30]} cxb3 {[%emt 0:00:15]} 51. Kc3 {[%emt 0:00:30]} Kxf6 {[%emt 0:00:09]} 52. Bd3 {[%emt 0:00:30]} Ra1 {[%emt 0:01:25]} 53. Kb2 {[%emt 0:02:30]} Re1 {[%emt 0:01:05]} 54. Bb5 {[%emt 0:01:30]} Rxe3 {[%emt 0:00:33]} 55. Rf8+ {[%emt 0:00:30]} Kg5 {[%emt 0:00:26]} 56. Rg8+ {[%emt 0:00:30]} Kf4 {[%emt 0:00:50]} 57. Rg6 {[%emt 0:01:30]} Nxe4 {[%emt 0:00:43]} 58. Bc4 {[%emt 0:00:00]} Rg3 {[%emt 0:01:14]} 59. Rh6 {[%emt 0:00:00]} Kg5 {[%emt 0:00:56]} 60. Re6 {[%emt 0:00:30]} Rg2+ {[%emt 0:00:09]} 61. Kb1 {[%emt 0:01:30]} 0-1